[Event "*** SCC Grand Prix: Titled Tuesday Blitz"]
[Site "Chess.com"]
[Date "2020.06.09"]
[Round "6"]
[White "KamlaPasand"]
[Black "Semetey"]
[Result "0-1"]
[WhiteElo "2223"]
[BlackElo "2529"]
[TimeControl "180+1"]
[EndTime "10:08:21 PDT"]
[Termination "Semetey won on time"]

1. e4 {[%clk 0:03:00.9]} 1... g6 {[%clk 0:03:00.9]} 2. d4 {[%clk 0:02:59.5]}
2... Bg7 {[%clk 0:03:01.8]} 3. Bc4 {[%clk 0:02:59.2]} 3... c6 {[%clk 0:03:01.6]}
4. Nc3 {[%clk 0:02:58.2]} 4... d6 {[%clk 0:02:52.9]} 5. h3 {[%clk 0:02:54.3]}
5... b5 {[%clk 0:02:52.1]} 6. Bb3 {[%clk 0:02:52.9]} 6... a5 {[%clk 0:02:52]} 7.
a4 {[%clk 0:02:51.2]} 7... b4 {[%clk 0:02:51.6]} 8. Nce2 {[%clk 0:02:51.3]} 8...
Nf6 {[%clk 0:02:51.4]} 9. Ng3 {[%clk 0:02:36.4]} 9... O-O {[%clk 0:02:50.3]} 10.
N1e2 {[%clk 0:02:35.1]} 10... e5 {[%clk 0:02:46.9]} 11. O-O {[%clk 0:02:34.4]}
11... Qc7 {[%clk 0:02:29]} 12. Bg5 {[%clk 0:02:28.6]} 12... Nbd7 {[%clk
0:02:28.1]} 13. Qd2 {[%clk 0:02:25.2]} 13... Re8 {[%clk 0:02:26.9]} 14. Rae1
{[%clk 0:02:20.3]} 14... Bb7 {[%clk 0:02:25.1]} 15. Bh6 {[%clk 0:02:18.1]} 15...
Bh8 {[%clk 0:02:24.4]} 16. f4 {[%clk 0:01:59.8]} 16... exd4 {[%clk 0:02:21.6]}
17. Nxd4 {[%clk 0:01:54]} 17... Qb6 {[%clk 0:02:21.5]} 18. Kh1 {[%clk
0:01:49.9]} 18... c5 {[%clk 0:02:19.8]} 19. Ndf5 {[%clk 0:01:39.9]} 19... gxf5
{[%clk 0:02:05.3]} 20. Nxf5 {[%clk 0:01:40.8]} 20... Nxe4 {[%clk 0:02:05]} 21.
Rxe4 {[%clk 0:01:30.4]} 21... Rxe4 {[%clk 0:02:02.8]} 22. Nxd6 {[%clk
0:01:13.4]} 22... c4 {[%clk 0:01:44.6]} 23. Nxc4 {[%clk 0:00:59.6]} 23... Rxc4
{[%clk 0:01:43.3]} 24. Bxc4 {[%clk 0:00:58.2]} 24... Qxh6 {[%clk 0:01:39.3]} 25.
Qxd7 {[%clk 0:00:56.9]} 25... Bxg2+ {[%clk 0:01:07.4]} 26. Kxg2 {[%clk
0:00:55.4]} 26... Qg6+ {[%clk 0:01:06.5]} 27. Kf3 {[%clk 0:00:27.4]} 27... Bxb2
{[%clk 0:00:50.6]} 28. Bd3 {[%clk 0:00:15.7]} 28... Qh5+ {[%clk 0:00:48.4]} 29.
Qg4+ {[%clk 0:00:15.1]} 29... Qxg4+ {[%clk 0:00:47.8]} 30. hxg4 {[%clk 0:00:16]}
30... Re8 {[%clk 0:00:45.9]} 31. Rh1 {[%clk 0:00:15.6]} 31... Bd4 {[%clk
0:00:43.6]} 32. Bxh7+ {[%clk 0:00:13]} 32... Kg7 {[%clk 0:00:43.6]} 33. Be4
{[%clk 0:00:13.4]} 33... Rc8 {[%clk 0:00:43.8]} 34. Rh7+ {[%clk 0:00:13]} 34...
Kg8 {[%clk 0:00:43.5]} 35. Rh5 {[%clk 0:00:12.9]} 35... Rc3+ {[%clk 0:00:42.7]}
36. Kg2 {[%clk 0:00:12.1]} 36... Bc5 {[%clk 0:00:41]} 37. Rg5+ {[%clk
0:00:09.3]} 37... Kf8 {[%clk 0:00:40.7]} 38. Rf5 {[%clk 0:00:09.5]} 38... Kg7
{[%clk 0:00:39.9]} 39. Bd5 {[%clk 0:00:09.2]} 39... f6 {[%clk 0:00:40]} 40. Be4
{[%clk 0:00:08.1]} 40... Bb6 {[%clk 0:00:34.8]} 41. Rb5 {[%clk 0:00:06.7]} 41...
Bc7 {[%clk 0:00:34.8]} 42. Rb7 {[%clk 0:00:06.5]} 42... Kf8 {[%clk 0:00:34.7]}
43. g5 {[%clk 0:00:05.3]} 43... fxg5 {[%clk 0:00:33.6]} 44. fxg5 {[%clk
0:00:06.2]} 44... Rg3+ {[%clk 0:00:28.7]} 45. Kf2 {[%clk 0:00:05.9]} 45... Rc3
{[%clk 0:00:29.6]} 46. g6 {[%clk 0:00:05.9]} 46... Kg7 {[%clk 0:00:29.5]} 47.
Bd3 {[%clk 0:00:05]} 47... Kf6 {[%clk 0:00:28.2]} 48. Ke2 {[%clk 0:00:05.1]}
48... Rc5 {[%clk 0:00:26.9]} 49. Rb5 {[%clk 0:00:04.5]} 49... Rc6 {[%clk
0:00:25.6]} 50. Kd1 {[%clk 0:00:02.8]} 50... Re6 {[%clk 0:00:24.5]} 51. Kc1
{[%clk 0:00:02.9]} 51... Bf4+ {[%clk 0:00:23]} 52. Kb2 {[%clk 0:00:03.3]} 52...
Be5+ {[%clk 0:00:23.5]} 53. Kb3 {[%clk 0:00:03.6]} 53... Bc7 {[%clk 0:00:23.4]}
54. Rxa5 {[%clk 0:00:04]} 54... Bxa5 {[%clk 0:00:22.7]} 55. Kc4 {[%clk
0:00:03.9]} 55... Bd8 {[%clk 0:00:21.8]} 56. Kb5 {[%clk 0:00:04.5]} 56... Re5+
{[%clk 0:00:20.5]} 57. Kc4 {[%clk 0:00:03.2]} 57... Ba5 {[%clk 0:00:21.4]} 58.
Kd4 {[%clk 0:00:02.7]} 58... Rg5 {[%clk 0:00:21.6]} 59. Kc4 {[%clk 0:00:03.1]}
59... Ke5 {[%clk 0:00:21.2]} 60. Kb3 {[%clk 0:00:01.6]} 60... Kd4 {[%clk
0:00:21.4]} 61. Kb2 {[%clk 0:00:01.5]} 61... Bd8 {[%clk 0:00:20]} 62. Kb3 {[%clk
0:00:01.6]} 62... Rg1 {[%clk 0:00:19.5]} 63. Kxb4 {[%clk 0:00:01.6]} 63... Rb1+
{[%clk 0:00:19.5]} 64. Ka3 {[%clk 0:00:01.9]} 64... Kc3 {[%clk 0:00:19.6]} 65.
Ka2 {[%clk 0:00:01.9]} 65... Rb2+ {[%clk 0:00:19.7]} 66. Ka1 {[%clk 0:00:01.8]}
66... Bf6 {[%clk 0:00:20.2]} 67. a5 {[%clk 0:00:01.4]} 67... Kb4 {[%clk
0:00:19.1]} 68. a6 {[%clk 0:00:01.1]} 68... Rxc2+ {[%clk 0:00:18.8]} 0-1

[Event "*** SCC Grand Prix: Titled Tuesday Blitz"]
[Site "Chess.com"]
[Date "2020.06.09"]
[Round "6"]
[White "RestartingChess"]
[Black "GoltsevDmitry2000"]
[Result "1-0"]
[WhiteElo "2486"]
[BlackElo "2613"]
[TimeControl "180+1"]
[EndTime "10:08:24 PDT"]
[Termination "RestartingChess won by resignation"]

1. e4 {[%clk 0:03:00.6]} 1... c5 {[%clk 0:02:59.9]} 2. Nf3 {[%clk 0:02:59.7]}
2... e6 {[%clk 0:03:00.2]} 3. b3 {[%clk 0:02:59.7]} 3... a6 {[%clk 0:03:00.3]}
4. Bb2 {[%clk 0:02:59.8]} 4... Nc6 {[%clk 0:03:00.8]} 5. Be2 {[%clk 0:02:53.7]}
5... d5 {[%clk 0:03:00.8]} 6. exd5 {[%clk 0:02:53.7]} 6... exd5 {[%clk
0:03:01.7]} 7. d4 {[%clk 0:02:53.5]} 7... cxd4 {[%clk 0:03:01.5]} 8. Nxd4 {[%clk
0:02:53.7]} 8... Nf6 {[%clk 0:03:01.2]} 9. Nf3 {[%clk 0:02:51.8]} 9... Be7
{[%clk 0:02:59.6]} 10. O-O {[%clk 0:02:52.1]} 10... O-O {[%clk 0:02:56.7]} 11.
h3 {[%clk 0:02:52.5]} 11... Be6 {[%clk 0:02:56.4]} 12. Nbd2 {[%clk 0:02:45.5]}
12... h6 {[%clk 0:02:56.3]} 13. Ne5 {[%clk 0:02:45.4]} 13... Qc7 {[%clk
0:02:55.8]} 14. Ndf3 {[%clk 0:02:45.5]} 14... Ne4 {[%clk 0:02:54.9]} 15. c4
{[%clk 0:02:38.2]} 15... Rad8 {[%clk 0:02:53.7]} 16. Qc2 {[%clk 0:02:34.9]}
16... Bf6 {[%clk 0:02:47.9]} 17. cxd5 {[%clk 0:02:27.1]} 17... Bxd5 {[%clk
0:02:48.8]} 18. Ng4 {[%clk 0:02:22.5]} 18... Bxb2 {[%clk 0:02:45.3]} 19. Qxb2
{[%clk 0:02:21.8]} 19... f5 {[%clk 0:02:43.5]} 20. Ne3 {[%clk 0:02:16.1]} 20...
Be6 {[%clk 0:02:41]} 21. Rac1 {[%clk 0:02:13.3]} 21... Qb6 {[%clk 0:02:34.8]}
22. Bc4 {[%clk 0:02:11.3]} 22... Rde8 {[%clk 0:02:21.2]} 23. Bxe6+ {[%clk
0:02:01.9]} 23... Rxe6 {[%clk 0:02:22.1]} 24. Nd5 {[%clk 0:02:02.8]} 24... Qd8
{[%clk 0:02:15.9]} 25. Rcd1 {[%clk 0:02:01.1]} 25... Rd6 {[%clk 0:02:14.3]} 26.
Ne3 {[%clk 0:01:55]} 26... b5 {[%clk 0:01:46.6]} 27. Ne5 {[%clk 0:01:48.4]}
27... Ne7 {[%clk 0:01:40.5]} 28. Rxd6 {[%clk 0:01:40]} 28... Qxd6 {[%clk
0:01:41.4]} 29. Rd1 {[%clk 0:01:40.2]} 29... Qf6 {[%clk 0:01:30.1]} 30. b4
{[%clk 0:01:22.3]} 30... Nc6 {[%clk 0:01:20.3]} 31. Qb3+ {[%clk 0:01:19.7]}
31... Kh7 {[%clk 0:01:14.8]} 32. Nd7 {[%clk 0:01:18.5]} 32... Qe7 {[%clk
0:00:42.6]} 33. Nxf8+ {[%clk 0:01:17.3]} 33... Qxf8 {[%clk 0:00:43.5]} 34. Qe6
{[%clk 0:01:16.3]} 34... Nxb4 {[%clk 0:00:30.9]} 35. Nxf5 {[%clk 0:01:06.8]}
35... Ng5 {[%clk 0:00:26.1]} 36. Qe5 {[%clk 0:00:54.2]} 36... Nc6 {[%clk
0:00:18.2]} 37. Qd5 {[%clk 0:00:44.4]} 37... Qf6 {[%clk 0:00:16.5]} 38. Qd3
{[%clk 0:00:38.3]} 38... Ne5 {[%clk 0:00:12.7]} 39. Qc2 {[%clk 0:00:37]} 39...
Qg6 {[%clk 0:00:12.8]} 40. Rd6 {[%clk 0:00:31.9]} 40... Qe8 {[%clk 0:00:02.5]}
41. Nxh6+ {[%clk 0:00:13.9]} 41... Kh8 {[%clk 0:00:02.7]} 42. Ng4 {[%clk
0:00:07]} 42... Nc4 {[%clk 0:00:02.5]} 43. Rd1 {[%clk 0:00:06.3]} 43... Qe7
{[%clk 0:00:01.3]} 44. Qd3 {[%clk 0:00:05.9]} 44... Ne5 {[%clk 0:00:01.5]} 45.
Qd8+ {[%clk 0:00:05.9]} 45... Qxd8 {[%clk 0:00:01.8]} 46. Rxd8+ {[%clk
0:00:06.8]} 46... Kh7 {[%clk 0:00:02.5]} 47. Nxe5 {[%clk 0:00:07.6]} 47... Ne4
{[%clk 0:00:03]} 48. Ra8 {[%clk 0:00:07]} 48... Nc5 {[%clk 0:00:03.4]} 49. Nc6
{[%clk 0:00:06.3]} 49... Kg6 {[%clk 0:00:02]} 50. Nb4 {[%clk 0:00:05.9]} 50...
Kf6 {[%clk 0:00:02.1]} 51. Nxa6 {[%clk 0:00:06.5]} 51... Nd3 {[%clk 0:00:02.6]}
52. Nc7 {[%clk 0:00:07.2]} 52... b4 {[%clk 0:00:02.2]} 53. Rb8 {[%clk
0:00:06.8]} 53... Ke5 {[%clk 0:00:02.2]} 54. Na6 {[%clk 0:00:07.5]} 54... Kd4
{[%clk 0:00:02]} 55. Nxb4 {[%clk 0:00:08.1]} 55... Ne1 {[%clk 0:00:02.5]} 56.
Nc6+ {[%clk 0:00:08]} 56... Kc5 {[%clk 0:00:02.6]} 57. Rb7 {[%clk 0:00:08.9]}
57... Kxc6 {[%clk 0:00:02.5]} 58. Rxg7 {[%clk 0:00:09.8]} 58... Nd3 {[%clk
0:00:03]} 59. Rg3 {[%clk 0:00:10.2]} 59... Nf4 {[%clk 0:00:03.3]} 60. Rf3 {[%clk
0:00:10.6]} 60... Ne2+ {[%clk 0:00:02.9]} 61. Kf1 {[%clk 0:00:11.1]} 61... Nd4
{[%clk 0:00:03.8]} 62. Rf6+ {[%clk 0:00:11.5]} 62... Kd5 {[%clk 0:00:04]} 63. h4
{[%clk 0:00:12]} 63... Ke5 {[%clk 0:00:04.4]} 64. Rf8 {[%clk 0:00:11.6]} 64...
Ke6 {[%clk 0:00:04.8]} 65. h5 {[%clk 0:00:11.8]} 65... Ke7 {[%clk 0:00:05.4]}
66. Rf4 {[%clk 0:00:11.6]} 66... Ne6 {[%clk 0:00:05.7]} 67. Re4 {[%clk
0:00:12.2]} 1-0

[Event "*** SCC Grand Prix: Titled Tuesday Blitz"]
[Site "Chess.com"]
[Date "2020.06.09"]
[Round "6"]
[White "colegiodemadrid"]
[Black "GregShahade"]
[Result "0-1"]
[WhiteElo "2368"]
[BlackElo "2557"]
[TimeControl "180+1"]
[EndTime "10:08:28 PDT"]
[Termination "GregShahade won by resignation"]

1. e4 {[%clk 0:03:00.9]} 1... e5 {[%clk 0:02:59.3]} 2. Nf3 {[%clk 0:02:59.6]}
2... Nc6 {[%clk 0:02:59.4]} 3. Bb5 {[%clk 0:03:00]} 3... a6 {[%clk 0:02:59]} 4.
Ba4 {[%clk 0:02:59.5]} 4... Nf6 {[%clk 0:02:58.7]} 5. d3 {[%clk 0:02:57.8]} 5...
b5 {[%clk 0:02:57.5]} 6. Bb3 {[%clk 0:02:57.2]} 6... Bc5 {[%clk 0:02:58.2]} 7.
Nc3 {[%clk 0:02:53.4]} 7... h6 {[%clk 0:02:58.5]} 8. a4 {[%clk 0:02:51.6]} 8...
Rb8 {[%clk 0:02:57]} 9. axb5 {[%clk 0:02:50.6]} 9... axb5 {[%clk 0:02:57.9]} 10.
Nd5 {[%clk 0:02:50.4]} 10... d6 {[%clk 0:02:57.3]} 11. Be3 {[%clk 0:02:48]}
11... Bxe3 {[%clk 0:02:55.5]} 12. fxe3 {[%clk 0:02:48.9]} 12... O-O {[%clk
0:02:54]} 13. O-O {[%clk 0:02:47.7]} 13... Nxd5 {[%clk 0:02:53]} 14. Bxd5 {[%clk
0:02:37.3]} 14... Ne7 {[%clk 0:02:53.3]} 15. Bb3 {[%clk 0:02:36.4]} 15... Ng6
{[%clk 0:02:53]} 16. Qd2 {[%clk 0:02:33]} 16... Qe7 {[%clk 0:02:45.2]} 17. Ra7
{[%clk 0:02:30.9]} 17... Be6 {[%clk 0:02:24.7]} 18. Bxe6 {[%clk 0:02:25.5]}
18... fxe6 {[%clk 0:02:25.6]} 19. Qc3 {[%clk 0:02:24.9]} 19... Rf7 {[%clk
0:02:21.1]} 20. Rfa1 {[%clk 0:02:22.5]} 20... Nh4 {[%clk 0:02:10.8]} 21. Nxh4
{[%clk 0:01:58.3]} 21... Qxh4 {[%clk 0:02:11.7]} 22. Qd2 {[%clk 0:01:55.8]}
22... Rbf8 {[%clk 0:02:06.8]} 23. Ra8 {[%clk 0:01:55.9]} 23... Kh7 {[%clk
0:01:56.7]} 24. Rxf8 {[%clk 0:01:54.7]} 24... Rxf8 {[%clk 0:01:56.8]} 25. Ra7
{[%clk 0:01:44.7]} 25... Rf7 {[%clk 0:01:56.3]} 26. Rb7 {[%clk 0:01:43.1]} 26...
Qf6 {[%clk 0:01:46.5]} 27. Qe2 {[%clk 0:01:41]} 27... c6 {[%clk 0:01:46.6]} 28.
Rxf7 {[%clk 0:01:40.7]} 28... Qxf7 {[%clk 0:01:46.6]} 29. b3 {[%clk 0:01:26.1]}
29... Qa7 {[%clk 0:01:45.3]} 30. h3 {[%clk 0:01:23]} 30... Qc5 {[%clk
0:01:45.3]} 31. Kh2 {[%clk 0:01:19.9]} 31... Qc3 {[%clk 0:01:45.4]} 32. Qg4
{[%clk 0:01:09.4]} 32... Qxc2 {[%clk 0:01:32]} 33. Qxe6 {[%clk 0:01:08.6]} 33...
Qxd3 {[%clk 0:01:32.5]} 34. Qf5+ {[%clk 0:01:08.8]} 34... Kg8 {[%clk 0:01:30.2]}
35. Qe6+ {[%clk 0:01:09.2]} 35... Kf8 {[%clk 0:01:28.1]} 36. Qc8+ {[%clk
0:01:06.5]} 36... Ke7 {[%clk 0:01:28.3]} 37. Qc7+ {[%clk 0:01:06.6]} 37... Kf6
{[%clk 0:01:27.3]} 38. Qd8+ {[%clk 0:01:06.4]} 38... Kg6 {[%clk 0:01:25.4]} 39.
Qe8+ {[%clk 0:01:04.9]} 39... Kh7 {[%clk 0:01:25.1]} 40. Qxc6 {[%clk 0:01:04]}
40... Qxe3 {[%clk 0:01:19.6]} 41. Qd5 {[%clk 0:00:55.6]} 41... Qd4 {[%clk
0:01:00.8]} 42. Qb7 {[%clk 0:00:49.4]} 42... b4 {[%clk 0:01:00.8]} 43. Qa8
{[%clk 0:00:37.7]} 43... Qd2 {[%clk 0:00:59.7]} 44. Qc6 {[%clk 0:00:33.3]} 44...
Qd4 {[%clk 0:00:58.7]} 45. Qa8 {[%clk 0:00:32.4]} 45... Qd3 {[%clk 0:00:59.2]}
46. Qb7 {[%clk 0:00:25.3]} 46... Qxb3 {[%clk 0:00:54.4]} 47. Qd7 {[%clk
0:00:25.8]} 47... Qc4 {[%clk 0:00:20.3]} 48. Qf5+ {[%clk 0:00:23.2]} 48... Kg8
{[%clk 0:00:19.5]} 49. Qg6 {[%clk 0:00:19.4]} 49... Qc7 {[%clk 0:00:16.4]} 50.
Qe6+ {[%clk 0:00:18.4]} 50... Kh8 {[%clk 0:00:15.5]} 51. Qe8+ {[%clk 0:00:17.8]}
51... Kh7 {[%clk 0:00:15.9]} 52. Qe6 {[%clk 0:00:18.2]} 52... Qd8 {[%clk
0:00:14.9]} 53. Qf5+ {[%clk 0:00:17.5]} 53... Kh8 {[%clk 0:00:14.8]} 54. Qe6
{[%clk 0:00:17.8]} 54... Qb8 {[%clk 0:00:15]} 55. Qb3 {[%clk 0:00:17.3]} 55...
Kh7 {[%clk 0:00:15.7]} 56. h4 {[%clk 0:00:15.8]} 56... h5 {[%clk 0:00:15.5]} 57.
Qf7 {[%clk 0:00:14.1]} 57... Qd8 {[%clk 0:00:11.1]} 58. Qxh5+ {[%clk 0:00:14.2]}
58... Kg8 {[%clk 0:00:11.4]} 59. Qg4 {[%clk 0:00:14.2]} 59... Qe7 {[%clk
0:00:09.4]} 60. Qc8+ {[%clk 0:00:13.4]} 60... Kh7 {[%clk 0:00:09.4]} 61. Kh3
{[%clk 0:00:12.4]} 61... Qf7 {[%clk 0:00:08.2]} 62. g3 {[%clk 0:00:11.6]} 62...
b3 {[%clk 0:00:08.4]} 63. Qb7 {[%clk 0:00:10]} 63... Qf1+ {[%clk 0:00:08.8]} 64.
Kg4 {[%clk 0:00:09.7]} 64... Qd1+ {[%clk 0:00:07.5]} 65. Kg5 {[%clk 0:00:09.9]}
65... Qd2+ {[%clk 0:00:07.3]} 66. Kf5 {[%clk 0:00:10]} 66... b2 {[%clk
0:00:06.7]} 67. Qb3 {[%clk 0:00:07.4]} 67... Qf2+ {[%clk 0:00:06.6]} 68. Kg4
{[%clk 0:00:07]} 68... Qe2+ {[%clk 0:00:07.1]} 69. Kg5 {[%clk 0:00:06.9]} 69...
Qd2+ {[%clk 0:00:07.1]} 70. Kg4 {[%clk 0:00:06.5]} 70... Qc1 {[%clk 0:00:06]}
71. Qf7 {[%clk 0:00:06.1]} 71... Qd1+ {[%clk 0:00:06.1]} 72. Kg5 {[%clk
0:00:05.6]} 72... Qd2+ {[%clk 0:00:06]} 73. Kg4 {[%clk 0:00:06]} 73... Qe2+
{[%clk 0:00:06]} 74. Kg5 {[%clk 0:00:06.2]} 74... Qe3+ {[%clk 0:00:06.3]} 75.
Kh5 {[%clk 0:00:06.1]} 75... Qh6+ {[%clk 0:00:05.4]} 76. Kg4 {[%clk 0:00:06.7]}
76... Qg6+ {[%clk 0:00:06.1]} 77. Qxg6+ {[%clk 0:00:06.7]} 77... Kxg6 {[%clk
0:00:07]} 0-1

[Event "*** SCC Grand Prix: Titled Tuesday Blitz"]
[Site "Chess.com"]
[Date "2020.06.09"]
[Round "6"]
[White "TrenerChos"]
[Black "Roza_Idrisova"]
[Result "1-0"]
[WhiteElo "2362"]
[BlackElo "2177"]
[TimeControl "180+1"]
[EndTime "10:08:32 PDT"]
[Termination "TrenerChos won on time"]

1. d4 {[%clk 0:03:00.9]} 1... d5 {[%clk 0:02:59.2]} 2. c4 {[%clk 0:02:58.5]}
2... c6 {[%clk 0:02:59.3]} 3. Nc3 {[%clk 0:02:57.2]} 3... Nf6 {[%clk 0:02:58.7]}
4. Nf3 {[%clk 0:02:56.4]} 4... a6 {[%clk 0:02:58.7]} 5. e3 {[%clk 0:02:56.3]}
5... b5 {[%clk 0:02:58.2]} 6. b3 {[%clk 0:02:55.1]} 6... Bg4 {[%clk 0:02:57.3]}
7. Be2 {[%clk 0:02:53.3]} 7... e6 {[%clk 0:02:57.5]} 8. O-O {[%clk 0:02:52.5]}
8... Be7 {[%clk 0:02:57.7]} 9. h3 {[%clk 0:02:52.4]} 9... Bh5 {[%clk 0:02:57.2]}
10. g4 {[%clk 0:02:50.2]} 10... Bg6 {[%clk 0:02:56.7]} 11. Ne5 {[%clk
0:02:50.5]} 11... Nfd7 {[%clk 0:02:49.3]} 12. Nxg6 {[%clk 0:02:46.2]} 12... hxg6
{[%clk 0:02:48.8]} 13. Kg2 {[%clk 0:02:45.8]} 13... Bd6 {[%clk 0:02:46.6]} 14.
e4 {[%clk 0:02:40.2]} 14... b4 {[%clk 0:02:46.3]} 15. Nb1 {[%clk 0:02:26.9]}
15... Qh4 {[%clk 0:02:37]} 16. Rh1 {[%clk 0:02:24.7]} 16... Nf6 {[%clk
0:02:34.3]} 17. e5 {[%clk 0:02:15.5]} 17... Ne4 {[%clk 0:02:33.2]} 18. Be3
{[%clk 0:02:14]} 18... Be7 {[%clk 0:02:32.2]} 19. Bf3 {[%clk 0:02:10.2]} 19...
Ng5 {[%clk 0:02:25.1]} 20. Bxg5 {[%clk 0:01:57.4]} 20... Bxg5 {[%clk 0:02:23.6]}
21. Qc2 {[%clk 0:01:56.7]} 21... Nd7 {[%clk 0:02:14.4]} 22. Nd2 {[%clk
0:01:54.8]} 22... Ke7 {[%clk 0:02:10.1]} 23. Rac1 {[%clk 0:01:48.9]} 23... Qh6
{[%clk 0:02:08.5]} 24. Rcd1 {[%clk 0:01:46.2]} 24... a5 {[%clk 0:02:05.7]} 25.
Nf1 {[%clk 0:01:40.9]} 25... Rac8 {[%clk 0:02:02.5]} 26. Ng3 {[%clk 0:01:40.1]}
26... Nb6 {[%clk 0:01:53.8]} 27. c5 {[%clk 0:01:37.8]} 27... Nd7 {[%clk
0:01:53.5]} 28. Qd3 {[%clk 0:01:35.2]} 28... Ra8 {[%clk 0:01:52.6]} 29. Be2
{[%clk 0:01:23.4]} 29... Bh4 {[%clk 0:01:51.1]} 30. Rdf1 {[%clk 0:01:19.6]}
30... Qf4 {[%clk 0:01:49.3]} 31. Bd1 {[%clk 0:01:07.6]} 31... f6 {[%clk
0:01:39.7]} 32. Qxg6 {[%clk 0:00:59.4]} 32... Rag8 {[%clk 0:01:34.2]} 33. exf6+
{[%clk 0:00:55.4]} 33... gxf6 {[%clk 0:01:33.4]} 34. Qd3 {[%clk 0:00:54.3]}
34... e5 {[%clk 0:01:21.7]} 35. Nf5+ {[%clk 0:00:51.9]} 35... Kd8 {[%clk
0:01:17.5]} 36. Nxh4 {[%clk 0:00:51.5]} 36... Rxh4 {[%clk 0:01:13.6]} 37. dxe5
{[%clk 0:00:47.4]} 37... fxe5 {[%clk 0:01:13]} 38. Qg3 {[%clk 0:00:44.5]} 38...
Qg5 {[%clk 0:01:08.4]} 39. Re1 {[%clk 0:00:40.7]} 39... Rh7 {[%clk 0:01:06.9]}
40. h4 {[%clk 0:00:38.4]} 40... Qf6 {[%clk 0:01:04.4]} 41. f3 {[%clk 0:00:34.4]}
41... Re7 {[%clk 0:01:00.9]} 42. Bc2 {[%clk 0:00:29.6]} 42... Nxc5 {[%clk
0:00:59.1]} 43. g5 {[%clk 0:00:29.3]} 43... Qg7 {[%clk 0:00:56.2]} 44. f4 {[%clk
0:00:28.1]} 44... exf4 {[%clk 0:00:53.9]} 45. Qxf4 {[%clk 0:00:27.3]} 45... Nd7
{[%clk 0:00:33.4]} 46. Qd6 {[%clk 0:00:22.2]} 46... Rge8 {[%clk 0:00:24.3]} 47.
Qg3 {[%clk 0:00:18]} 47... Qb2 {[%clk 0:00:20.5]} 48. Qf2 {[%clk 0:00:17.7]}
48... Rxe1 {[%clk 0:00:18.4]} 49. Rxe1 {[%clk 0:00:14.6]} 49... Rxe1 {[%clk
0:00:18]} 50. Qxe1 {[%clk 0:00:15.5]} 50... Qxc2+ {[%clk 0:00:18]} 51. Kg1
{[%clk 0:00:16.4]} 51... Qf5 {[%clk 0:00:15.8]} 52. Qf2 {[%clk 0:00:14.4]} 52...
Qg4+ {[%clk 0:00:15.2]} 53. Kf1 {[%clk 0:00:12]} 53... Ke7 {[%clk 0:00:11.3]}
54. Qe2+ {[%clk 0:00:10.9]} 54... Kd6 {[%clk 0:00:11]} 55. Qxg4 {[%clk
0:00:10.4]} 55... Ne5 {[%clk 0:00:11.1]} 56. Qf5 {[%clk 0:00:09.8]} 56... d4
{[%clk 0:00:10.7]} 57. Qf6+ {[%clk 0:00:09.6]} 57... Kd5 {[%clk 0:00:10.7]} 58.
Ke2 {[%clk 0:00:09.5]} 58... c5 {[%clk 0:00:07.2]} 59. Qd8+ {[%clk 0:00:09]}
59... Ke4 {[%clk 0:00:07]} 60. Qxa5 {[%clk 0:00:06.2]} 60... d3+ {[%clk
0:00:04.8]} 61. Kd2 {[%clk 0:00:06.1]} 61... Nf3+ {[%clk 0:00:04.7]} 62. Kd1
{[%clk 0:00:05.9]} 62... Kd4 {[%clk 0:00:03.4]} 63. Qd8+ {[%clk 0:00:04.8]} 1-0